[Event "*** Titled Tuesday Blitz"]
[Site "Chess.com"]
[Date "2021.03.30"]
[Round "6"]
[White "Soltan49"]
[Black "BendyBear"]
[Result "1-0"]
[WhiteElo "2250"]
[BlackElo "2422"]
[TimeControl "180+1"]
[EndTime "11:07:42 PDT"]
[Termination "Soltan49 won by checkmate"]

1. Nf3 {[%clk 0:03:00.9]} 1... g6 {[%clk 0:02:59.8]} 2. d4 {[%clk 0:03:00.5]}
2... Bg7 {[%clk 0:03:00.3]} 3. c4 {[%clk 0:03:00.5]} 3... c5 {[%clk 0:03:00.4]}
4. Nc3 {[%clk 0:03:01.4]} 4... cxd4 {[%clk 0:03:00.5]} 5. Nxd4 {[%clk
0:03:02.3]} 5... Nc6 {[%clk 0:03:00.8]} 6. Nxc6 {[%clk 0:02:58.7]} 6... bxc6
{[%clk 0:03:01.7]} 7. e4 {[%clk 0:02:59]} 7... Qc7 {[%clk 0:02:59.1]} 8. Be2
{[%clk 0:02:57.3]} 8... Nf6 {[%clk 0:02:58.7]} 9. O-O {[%clk 0:02:56.8]} 9...
O-O {[%clk 0:02:58.3]} 10. Be3 {[%clk 0:02:30]} 10... Rb8 {[%clk 0:02:57.4]} 11.
b3 {[%clk 0:02:27.4]} 11... d6 {[%clk 0:02:41]} 12. Rc1 {[%clk 0:02:25.2]} 12...
h5 {[%clk 0:02:40.1]} 13. f3 {[%clk 0:02:19]} 13... Be6 {[%clk 0:02:35.7]} 14.
Qd2 {[%clk 0:02:12.8]} 14... Kh7 {[%clk 0:02:35.3]} 15. h3 {[%clk 0:01:51.3]}
15... Rfd8 {[%clk 0:02:31.8]} 16. f4 {[%clk 0:01:51.2]} 16... Qd7 {[%clk
0:02:03.4]} 17. f5 {[%clk 0:01:03.6]} 17... gxf5 {[%clk 0:02:01.8]} 18. exf5
{[%clk 0:01:04.5]} 18... Bxf5 {[%clk 0:02:01.9]} 19. Rxf5 {[%clk 0:01:04.1]}
19... Rh8 {[%clk 0:01:22.8]} 20. Rcf1 {[%clk 0:00:43.7]} 20... Kg8 {[%clk
0:01:04.3]} 21. Bd4 {[%clk 0:00:40.2]} 21... e5 {[%clk 0:00:59.7]} 22. Be3
{[%clk 0:00:24.6]} 22... Qe6 {[%clk 0:00:59.2]} 23. Bg5 {[%clk 0:00:23.2]} 23...
Ne8 {[%clk 0:00:45.3]} 24. Kh1 {[%clk 0:00:19.5]} 24... Rb7 {[%clk 0:00:44.4]}
25. Qe3 {[%clk 0:00:15.5]} 25... Rd7 {[%clk 0:00:43.1]} 26. Bh4 {[%clk
0:00:13.6]} 26... d5 {[%clk 0:00:42]} 27. cxd5 {[%clk 0:00:13.2]} 27... cxd5
{[%clk 0:00:42.9]} 28. Nd1 {[%clk 0:00:12.6]} 28... d4 {[%clk 0:00:41.4]} 29.
Qd2 {[%clk 0:00:06.5]} 29... Rh6 {[%clk 0:00:40.9]} 30. Rxh5 {[%clk 0:00:06.4]}
30... Rg6 {[%clk 0:00:39.2]} 31. Rg5 {[%clk 0:00:06.2]} 31... Rxg5 {[%clk
0:00:38.5]} 32. Bxg5 {[%clk 0:00:07.1]} 32... Qg6 {[%clk 0:00:39.4]} 33. Bh4
{[%clk 0:00:05.6]} 33... d3 {[%clk 0:00:39.6]} 34. Bf3 {[%clk 0:00:05.6]} 34...
e4 {[%clk 0:00:40.1]} 35. Bg4 {[%clk 0:00:06.3]} 35... Rd5 {[%clk 0:00:38.7]}
36. Ne3 {[%clk 0:00:06.6]} 36... Rc5 {[%clk 0:00:38.1]} 37. Bf5 {[%clk
0:00:06.5]} 37... Qh5 {[%clk 0:00:34.9]} 38. Bg3 {[%clk 0:00:05.9]} 38... Bh6
{[%clk 0:00:34.9]} 39. Bxe4 {[%clk 0:00:05.1]} 39... Rg5 {[%clk 0:00:28.1]} 40.
Bf4 {[%clk 0:00:03.9]} 40... Qh4 {[%clk 0:00:23.1]} 41. Bxg5 {[%clk 0:00:03.8]}
41... Bxg5 {[%clk 0:00:24]} 42. Qxd3 {[%clk 0:00:04.2]} 42... Qg3 {[%clk
0:00:21.9]} 43. Nf5 {[%clk 0:00:04.7]} 43... Qe5 {[%clk 0:00:20.6]} 44. Qg3
{[%clk 0:00:04.7]} 44... f6 {[%clk 0:00:20.4]} 45. Qxe5 {[%clk 0:00:04.5]} 45...
fxe5 {[%clk 0:00:20.5]} 46. Ne7+ {[%clk 0:00:05.3]} 46... Bxe7 {[%clk
0:00:19.6]} 47. Bc6 {[%clk 0:00:06.2]} 47... Nf6 {[%clk 0:00:19.6]} 48. g4
{[%clk 0:00:05.8]} 48... Kg7 {[%clk 0:00:18.9]} 49. Re1 {[%clk 0:00:06.3]} 49...
Bd6 {[%clk 0:00:18.6]} 50. Kg2 {[%clk 0:00:06.9]} 50... Kf7 {[%clk 0:00:18.6]}
51. Kf3 {[%clk 0:00:07.5]} 51... Ke6 {[%clk 0:00:19.5]} 52. h4 {[%clk
0:00:07.5]} 52... Bc5 {[%clk 0:00:16.9]} 53. g5 {[%clk 0:00:07.9]} 53... Ng8
{[%clk 0:00:17.2]} 54. h5 {[%clk 0:00:07]} 54... Kd6 {[%clk 0:00:18.1]} 55. Bb5
{[%clk 0:00:06.6]} 55... Ne7 {[%clk 0:00:18.7]} 56. Bc4 {[%clk 0:00:06.6]} 56...
Bb4 {[%clk 0:00:19.6]} 57. Rd1+ {[%clk 0:00:06.7]} 57... Kc5 {[%clk 0:00:19.9]}
58. g6 {[%clk 0:00:07.2]} 58... Nc6 {[%clk 0:00:20.8]} 59. g7 {[%clk 0:00:07]}
59... Nd4+ {[%clk 0:00:21.7]} 60. Rxd4 {[%clk 0:00:07.1]} 60... exd4 {[%clk
0:00:21.3]} 61. g8=Q {[%clk 0:00:08]} 61... d3 {[%clk 0:00:21.6]} 62. Qd5+
{[%clk 0:00:08.6]} 62... Kb6 {[%clk 0:00:22.3]} 63. Qb5+ {[%clk 0:00:09.1]}
63... Kc7 {[%clk 0:00:23]} 64. Bxd3 {[%clk 0:00:09.2]} 64... a5 {[%clk
0:00:22.9]} 65. Qc4+ {[%clk 0:00:09.7]} 65... Kb6 {[%clk 0:00:22.9]} 66. Qxb4+
{[%clk 0:00:09.8]} 66... Ka7 {[%clk 0:00:23.8]} 67. Qxa5+ {[%clk 0:00:09.7]}
67... Kb8 {[%clk 0:00:24.1]} 68. Qb6+ {[%clk 0:00:09.9]} 68... Ka8 {[%clk
0:00:24.4]} 69. Be4# {[%clk 0:00:10]} 1-0

[Event "*** Titled Tuesday Blitz"]
[Site "Chess.com"]
[Date "2021.03.30"]
[Round "6"]
[White "Rud_Makarian"]
[Black "Aradhya2000"]
[Result "1-0"]
[WhiteElo "2802"]
[BlackElo "2580"]
[TimeControl "180+1"]
[EndTime "11:07:43 PDT"]
[Termination "Rud_Makarian won by checkmate"]

1. d4 {[%clk 0:03:00.9]} 1... d5 {[%clk 0:03:00]} 2. c4 {[%clk 0:03:00.5]} 2...
c6 {[%clk 0:03:00.4]} 3. Nf3 {[%clk 0:02:59.9]} 3... Nf6 {[%clk 0:03:00.9]} 4.
Nc3 {[%clk 0:03:00.6]} 4... dxc4 {[%clk 0:03:01.2]} 5. a4 {[%clk 0:02:59.7]}
5... Bf5 {[%clk 0:03:00.6]} 6. Ne5 {[%clk 0:03:00.1]} 6... Nbd7 {[%clk
0:03:00.4]} 7. Nxc4 {[%clk 0:03:00.7]} 7... Nb6 {[%clk 0:03:00.7]} 8. Ne5 {[%clk
0:02:59.4]} 8... a5 {[%clk 0:03:00.6]} 9. f3 {[%clk 0:02:59.9]} 9... Nfd7 {[%clk
0:02:50.5]} 10. e4 {[%clk 0:03:00.1]} 10... Nxe5 {[%clk 0:02:49.7]} 11. dxe5
{[%clk 0:03:01]} 11... Be6 {[%clk 0:02:44.8]} 12. Qc2 {[%clk 0:02:57.7]} 12...
Qc7 {[%clk 0:02:37.9]} 13. Bf4 {[%clk 0:02:57.3]} 13... Nd7 {[%clk 0:02:37.1]}
14. Rd1 {[%clk 0:02:37.2]} 14... g6 {[%clk 0:02:24.2]} 15. Ne2 {[%clk
0:02:26.9]} 15... Bg7 {[%clk 0:02:23.6]} 16. Nd4 {[%clk 0:02:27.3]} 16... Bxe5
{[%clk 0:02:22.8]} 17. Nxe6 {[%clk 0:02:26.5]} 17... fxe6 {[%clk 0:02:23.7]} 18.
Bh6 {[%clk 0:02:27]} 18... O-O-O {[%clk 0:02:21.7]} 19. g3 {[%clk 0:02:24.5]}
19... Qb6 {[%clk 0:02:16.6]} 20. b3 {[%clk 0:02:22]} 20... Nc5 {[%clk
0:02:15.7]} 21. Bc4 {[%clk 0:02:22.4]} 21... Rxd1+ {[%clk 0:02:03.5]} 22. Kxd1
{[%clk 0:02:23.3]} 22... Rd8+ {[%clk 0:02:03.1]} 23. Ke2 {[%clk 0:02:23.3]}
23... Bd4 {[%clk 0:01:52.9]} 24. h4 {[%clk 0:02:20]} 24... e5 {[%clk 0:01:47.5]}
25. h5 {[%clk 0:02:19.7]} 25... Kb8 {[%clk 0:01:47.2]} 26. Bg5 {[%clk
0:02:19.9]} 26... Qc7 {[%clk 0:01:37.3]} 27. hxg6 {[%clk 0:02:19.2]} 27... hxg6
{[%clk 0:01:38.2]} 28. Rh7 {[%clk 0:02:19.5]} 28... Rd7 {[%clk 0:01:37.9]} 29.
Qc1 {[%clk 0:02:12.6]} 29... Qd6 {[%clk 0:01:35.6]} 30. Qd2 {[%clk 0:02:10.9]}
30... b6 {[%clk 0:01:29.8]} 31. Kf1 {[%clk 0:02:06.7]} 31... Ne6 {[%clk
0:01:27.7]} 32. Bh4 {[%clk 0:01:59.5]} 32... g5 {[%clk 0:01:13.5]} 33. Bxg5
{[%clk 0:01:59.3]} 33... Nxg5 {[%clk 0:01:13.8]} 34. Qxg5 {[%clk 0:02:00.2]}
34... Bc5 {[%clk 0:01:14.2]} 35. Kg2 {[%clk 0:01:56.9]} 35... Qd1 {[%clk
0:01:12.8]} 36. Qf5 {[%clk 0:01:50.1]} 36... e6 {[%clk 0:00:54.3]} 37. Rh8+
{[%clk 0:01:47.4]} 37... Kc7 {[%clk 0:00:51.5]} 38. Qf6 {[%clk 0:01:45.3]} 38...
b5 {[%clk 0:00:18.9]} 39. axb5 {[%clk 0:01:40.6]} 39... cxb5 {[%clk 0:00:19.1]}
40. Bxe6 {[%clk 0:01:38.2]} 40... Qd6 {[%clk 0:00:11.9]} 41. Qf5 {[%clk
0:01:26.8]} 41... Re7 {[%clk 0:00:11.4]} 42. Bd5 {[%clk 0:01:26.2]} 42... Qd7
{[%clk 0:00:11.7]} 43. Qf6 {[%clk 0:01:23.6]} 43... Qd6 {[%clk 0:00:11.8]} 44.
Qf8 {[%clk 0:01:23.5]} 44... Kb6 {[%clk 0:00:11.4]} 45. Qa8 {[%clk 0:01:22]}
45... Bb4 {[%clk 0:00:09.4]} 46. Rb8+ {[%clk 0:01:14.8]} 46... Kc5 {[%clk
0:00:09.6]} 47. Rc8+ {[%clk 0:01:15.4]} 47... Kd4 {[%clk 0:00:09.9]} 48. Rc6
{[%clk 0:00:59.9]} 48... Qd7 {[%clk 0:00:09.1]} 49. Qh8 {[%clk 0:00:59.1]} 49...
Rg7 {[%clk 0:00:08.6]} 50. Qh1 {[%clk 0:00:54.8]} 50... Rh7 {[%clk 0:00:08.6]}
51. Qd1+ {[%clk 0:00:50.6]} 51... Ke3 {[%clk 0:00:08.8]} 52. Qg1+ {[%clk
0:00:50]} 52... Kd3 {[%clk 0:00:08.7]} 53. Qf1+ {[%clk 0:00:41.2]} 53... Ke3
{[%clk 0:00:09.1]} 54. Qf2+ {[%clk 0:00:39.8]} 54... Kd3 {[%clk 0:00:09]} 55. g4
{[%clk 0:00:26.5]} 55... Qa7 {[%clk 0:00:05]} 56. Qf1+ {[%clk 0:00:20.7]} 56...
Ke3 {[%clk 0:00:04.7]} 57. Qc1+ {[%clk 0:00:15.3]} 57... Kd3 {[%clk 0:00:04.7]}
58. Qc2+ {[%clk 0:00:13.7]} 58... Ke3 {[%clk 0:00:05]} 59. Qf2+ {[%clk 0:00:13]}
59... Kf4 {[%clk 0:00:05]} 60. Qg3+ {[%clk 0:00:10.2]} 60... Kg5 {[%clk
0:00:05.2]} 61. Qxe5+ {[%clk 0:00:10.4]} 61... Kh4 {[%clk 0:00:05.2]} 62. Qg3+
{[%clk 0:00:08.3]} 62... Kg5 {[%clk 0:00:05.4]} 63. f4# {[%clk 0:00:09.2]} 1-0

[Event "*** Titled Tuesday Blitz"]
[Site "Chess.com"]
[Date "2021.03.30"]
[Round "6"]
[White "Mikhail_Golubev"]
[Black "XDPS"]
[Result "1-0"]
[WhiteElo "2550"]
[BlackElo "2764"]
[TimeControl "180+1"]
[EndTime "11:07:44 PDT"]
[Termination "Mikhail_Golubev won by resignation"]

1. e4 {[%clk 0:02:58]} 1... e5 {[%clk 0:02:55.9]} 2. Nf3 {[%clk 0:02:57.3]} 2...
Nc6 {[%clk 0:02:56.4]} 3. Bb5 {[%clk 0:02:56.7]} 3... a6 {[%clk 0:02:56.8]} 4.
Ba4 {[%clk 0:02:56.8]} 4... d6 {[%clk 0:02:56.5]} 5. O-O {[%clk 0:02:31.7]} 5...
Bd7 {[%clk 0:02:56.2]} 6. c3 {[%clk 0:02:29.6]} 6... g6 {[%clk 0:02:56.2]} 7. d4
{[%clk 0:02:28.5]} 7... Bg7 {[%clk 0:02:56.6]} 8. h3 {[%clk 0:02:23.7]} 8... Nf6
{[%clk 0:02:56.7]} 9. Re1 {[%clk 0:02:21.9]} 9... O-O {[%clk 0:02:57]} 10. Nbd2
{[%clk 0:02:16]} 10... Re8 {[%clk 0:02:55.6]} 11. dxe5 {[%clk 0:02:03.3]} 11...
Nxe5 {[%clk 0:02:51.6]} 12. Nxe5 {[%clk 0:01:58]} 12... dxe5 {[%clk 0:02:52.5]}
13. Bb3 {[%clk 0:01:53.5]} 13... Bc6 {[%clk 0:02:51.2]} 14. Qc2 {[%clk
0:01:43.3]} 14... a5 {[%clk 0:02:32.9]} 15. a4 {[%clk 0:01:39.7]} 15... Qe7
{[%clk 0:01:59.5]} 16. Nf1 {[%clk 0:01:30.7]} 16... h6 {[%clk 0:01:57.1]} 17.
Ng3 {[%clk 0:01:27.7]} 17... Rad8 {[%clk 0:01:54.5]} 18. Be3 {[%clk 0:01:26]}
18... b6 {[%clk 0:01:51.6]} 19. Rad1 {[%clk 0:01:23.5]} 19... Kh7 {[%clk
0:01:51.3]} 20. f3 {[%clk 0:01:09.9]} 20... h5 {[%clk 0:01:49.3]} 21. Bg5 {[%clk
0:01:06.8]} 21... Bh6 {[%clk 0:01:49.4]} 22. Bxh6 {[%clk 0:01:02.8]} 22... Kxh6
{[%clk 0:01:49.4]} 23. Qc1+ {[%clk 0:01:00.3]} 23... Kh7 {[%clk 0:01:48.7]} 24.
Qg5 {[%clk 0:00:56.9]} 24... Rf8 {[%clk 0:01:07.3]} 25. Kh1 {[%clk 0:00:53.3]}
25... Nd5 {[%clk 0:00:24.3]} 26. Qxe7 {[%clk 0:00:44.1]} 26... Nxe7 {[%clk
0:00:25.2]} 27. Nf1 {[%clk 0:00:35.5]} 27... Kg7 {[%clk 0:00:24]} 28. Ne3 {[%clk
0:00:34.5]} 28... h4 {[%clk 0:00:19.6]} 29. Kg1 {[%clk 0:00:34]} 29... f6 {[%clk
0:00:16.1]} 30. Kf2 {[%clk 0:00:33.3]} 30... Nc8 {[%clk 0:00:09]} 31. Nc4 {[%clk
0:00:30]} 31... Rfe8 {[%clk 0:00:06.2]} 32. Ke3 {[%clk 0:00:24.9]} 32... Ne7
{[%clk 0:00:06.3]} 33. Bc2 {[%clk 0:00:21.4]} 33... Nc8 {[%clk 0:00:06.2]} 34.
b4 {[%clk 0:00:21]} 34... axb4 {[%clk 0:00:05.4]} 35. cxb4 {[%clk 0:00:20.6]}
35... Na7 {[%clk 0:00:04.9]} 36. a5 {[%clk 0:00:15.7]} 36... b5 {[%clk
0:00:03.7]} 37. Nb2 {[%clk 0:00:14.6]} 37... Bd7 {[%clk 0:00:04.1]} 38. Nd3
{[%clk 0:00:13.5]} 38... Nc6 {[%clk 0:00:04.2]} 39. Bb1 {[%clk 0:00:12.2]} 39...
Nd4 {[%clk 0:00:04.5]} 40. Nc5 {[%clk 0:00:11.1]} 40... Bc8 {[%clk 0:00:05]} 41.
a6 {[%clk 0:00:10.3]} 41... Be6 {[%clk 0:00:03.2]} 42. Bd3 {[%clk 0:00:07.5]}
42... Bc4 {[%clk 0:00:03.3]} 43. Ra1 {[%clk 0:00:06.3]} 43... Ra8 {[%clk
0:00:02.1]} 44. Bxc4 {[%clk 0:00:05.6]} 44... bxc4 {[%clk 0:00:02.6]} 45. Rec1
{[%clk 0:00:05.6]} 45... Reb8 {[%clk 0:00:03.2]} 46. Rxc4 {[%clk 0:00:05.5]}
46... Rxb4 {[%clk 0:00:03.8]} 47. Rxb4 {[%clk 0:00:05]} 47... Nc2+ {[%clk
0:00:04.4]} 48. Kd3 {[%clk 0:00:04.8]} 48... Nxb4+ {[%clk 0:00:05.3]} 49. Kc4
{[%clk 0:00:05.1]} 49... Nc2 {[%clk 0:00:05.6]} 50. Ra2 {[%clk 0:00:03.5]} 50...
Ne3+ {[%clk 0:00:05.5]} 51. Kb5 {[%clk 0:00:03.4]} 51... f5 {[%clk 0:00:04.2]}
52. Kc6 {[%clk 0:00:03.5]} 52... fxe4 {[%clk 0:00:04]} 53. fxe4 {[%clk
0:00:03.6]} 53... Nc4 {[%clk 0:00:02.7]} 54. Kb7 {[%clk 0:00:03.5]} 54... Rf8
{[%clk 0:00:02.6]} 55. a7 {[%clk 0:00:03.3]} 55... Nb6 {[%clk 0:00:03.1]} 56.
Kxc7 {[%clk 0:00:03.6]} 56... Na8+ {[%clk 0:00:03.7]} 57. Kb7 {[%clk 0:00:04]}
57... Kh6 {[%clk 0:00:03.8]} 58. Nd7 {[%clk 0:00:04.1]} 58... Rd8 {[%clk
0:00:03.9]} 59. Nb8 {[%clk 0:00:03.9]} 59... Rd2 {[%clk 0:00:03.4]} 60. Rxd2
{[%clk 0:00:02.4]} 1-0

[Event "*** Titled Tuesday Blitz"]
[Site "Chess.com"]
[Date "2021.03.30"]
[Round "6"]
[White "Kildepiotr"]
[Black "kuli4ik"]
[Result "0-1"]
[WhiteElo "2685"]
[BlackElo "2859"]
[TimeControl "180+1"]
[EndTime "11:07:47 PDT"]
[Termination "kuli4ik won by checkmate"]

1. Nf3 {[%clk 0:03:00.9]} 1... g6 {[%clk 0:02:59.3]} 2. g3 {[%clk 0:03:00.5]}
2... Bg7 {[%clk 0:02:58.9]} 3. d4 {[%clk 0:03:01.1]} 3... d6 {[%clk 0:02:59.3]}
4. Bg2 {[%clk 0:03:01.5]} 4... Nd7 {[%clk 0:02:58.8]} 5. O-O {[%clk 0:03:01.9]}
5... e5 {[%clk 0:02:58.3]} 6. dxe5 {[%clk 0:03:02.8]} 6... dxe5 {[%clk
0:02:55.9]} 7. e4 {[%clk 0:03:02.6]} 7... Ne7 {[%clk 0:02:56.1]} 8. Qe2 {[%clk
0:03:01.9]} 8... O-O {[%clk 0:02:55.6]} 9. b3 {[%clk 0:03:01.8]} 9... Nc6 {[%clk
0:02:38.1]} 10. c3 {[%clk 0:03:01.1]} 10... a5 {[%clk 0:02:33.7]} 11. Rd1 {[%clk
0:03:00.4]} 11... Qe8 {[%clk 0:02:22.3]} 12. Na3 {[%clk 0:02:59.3]} 12... b6
{[%clk 0:02:18.1]} 13. Nc4 {[%clk 0:02:58.6]} 13... f6 {[%clk 0:02:09.1]} 14.
Ne3 {[%clk 0:02:53.4]} 14... Ba6 {[%clk 0:02:07.7]} 15. Qc2 {[%clk 0:02:51.1]}
15... Rf7 {[%clk 0:02:04]} 16. Nd5 {[%clk 0:02:49.3]} 16... Nc5 {[%clk
0:02:00.1]} 17. Be3 {[%clk 0:02:48.4]} 17... Ne6 {[%clk 0:01:58.1]} 18. b4
{[%clk 0:02:41.8]} 18... Rd8 {[%clk 0:01:54.1]} 19. a4 {[%clk 0:02:39.8]} 19...
Bb7 {[%clk 0:01:48.9]} 20. b5 {[%clk 0:02:37.2]} 20... Nb8 {[%clk 0:01:45.5]}
21. Nd2 {[%clk 0:02:32.7]} 21... Nd7 {[%clk 0:01:41.8]} 22. Nb3 {[%clk
0:02:32.3]} 22... Bf8 {[%clk 0:01:39.3]} 23. Bh3 {[%clk 0:02:30.6]} 23... Ndc5
{[%clk 0:01:32.1]} 24. Nxc5 {[%clk 0:02:30]} 24... Nxc5 {[%clk 0:01:29.7]} 25.
f3 {[%clk 0:02:18]} 25... Bc8 {[%clk 0:01:29.1]} 26. Bxc8 {[%clk 0:02:15.9]}
26... Rxc8 {[%clk 0:01:30]} 27. Rd2 {[%clk 0:02:06.3]} 27... Ne6 {[%clk
0:01:28.6]} 28. Rad1 {[%clk 0:02:02.6]} 28... Bc5 {[%clk 0:01:28.5]} 29. Bxc5
{[%clk 0:02:02.5]} 29... Nxc5 {[%clk 0:01:29.4]} 30. Ne3 {[%clk 0:01:59]} 30...
Kg7 {[%clk 0:01:26.4]} 31. Rd5 {[%clk 0:01:55.8]} 31... Rd7 {[%clk 0:01:25.1]}
32. R1d2 {[%clk 0:01:51.3]} 32... Rf7 {[%clk 0:01:24.2]} 33. Qd1 {[%clk
0:01:49.6]} 33... h5 {[%clk 0:01:22.2]} 34. Nc4 {[%clk 0:01:44.6]} 34... Qe6
{[%clk 0:01:20.6]} 35. Nxa5 {[%clk 0:01:41.1]} 35... Nxe4 {[%clk 0:01:16.3]} 36.
fxe4 {[%clk 0:01:40]} 36... bxa5 {[%clk 0:01:16.6]} 37. Rd7 {[%clk 0:01:31.9]}
37... Rf8 {[%clk 0:01:09.7]} 38. R2d5 {[%clk 0:01:30.3]} 38... h4 {[%clk
0:01:05.7]} 39. Kg2 {[%clk 0:01:27.4]} 39... hxg3 {[%clk 0:01:00.4]} 40. hxg3
{[%clk 0:01:28.3]} 40... Qb6 {[%clk 0:00:48.9]} 41. c4 {[%clk 0:01:16.1]} 41...
Qe3 {[%clk 0:00:47.9]} 42. Qd3 {[%clk 0:01:14.7]} 42... Qc1 {[%clk 0:00:36.8]}
43. c5 {[%clk 0:01:10.9]} 43... Qb2+ {[%clk 0:00:27.3]} 44. Qd2 {[%clk
0:01:10.5]} 44... Qb1 {[%clk 0:00:27]} 45. Qd3 {[%clk 0:00:59.6]} 45... Qa2+
{[%clk 0:00:26.6]} 46. Kf3 {[%clk 0:00:57.5]} 46... Qxa4 {[%clk 0:00:26.6]} 47.
Rxf7+ {[%clk 0:00:55.1]} 47... Rxf7 {[%clk 0:00:26.5]} 48. Rd7 {[%clk
0:00:55.2]} 48... Rxd7 {[%clk 0:00:20.6]} 49. Qxd7+ {[%clk 0:00:54.4]} 49... Kh6
{[%clk 0:00:21.5]} 50. Qe8 {[%clk 0:00:28.4]} 50... Kg5 {[%clk 0:00:18.5]} 51.
Qd7 {[%clk 0:00:17.2]} 51... Qb3+ {[%clk 0:00:11.9]} 52. Kg2 {[%clk 0:00:17.2]}
52... Qc2+ {[%clk 0:00:07.4]} 53. Kh3 {[%clk 0:00:17.3]} 53... Qxc5 {[%clk
0:00:08]} 54. Qg4+ {[%clk 0:00:16.7]} 54... Kh6 {[%clk 0:00:08.3]} 55. Qc8
{[%clk 0:00:15.6]} 55... Kg7 {[%clk 0:00:06.2]} 56. Qd7+ {[%clk 0:00:15.4]}
56... Kh6 {[%clk 0:00:06.7]} 57. Qd8 {[%clk 0:00:14.4]} 57... g5 {[%clk
0:00:01.9]} 58. Qh8+ {[%clk 0:00:13.9]} 58... Kg6 {[%clk 0:00:02.5]} 59. Qg8+
{[%clk 0:00:14.3]} 59... Kh6 {[%clk 0:00:03.1]} 60. Kg4 {[%clk 0:00:13.7]} 60...
Qe7 {[%clk 0:00:01.9]} 61. Qh8+ {[%clk 0:00:13.4]} 61... Kg6 {[%clk 0:00:02.4]}
62. Qg8+ {[%clk 0:00:13]} 62... Qg7 {[%clk 0:00:02.8]} 63. Qe8+ {[%clk
0:00:13.1]} 63... Qf7 {[%clk 0:00:03.3]} 64. Qc8 {[%clk 0:00:11.9]} 64... Kg7
{[%clk 0:00:01.8]} 65. Kf5 {[%clk 0:00:10.2]} 65... a4 {[%clk 0:00:02.2]} 66.
Qa8 {[%clk 0:00:08.3]} 66... Qg6+ {[%clk 0:00:02.1]} 67. Ke6 {[%clk 0:00:06.8]}
67... Qf7+ {[%clk 0:00:02.5]} 68. Kf5 {[%clk 0:00:07.1]} 68... Qd7# {[%clk
0:00:02.9]} 0-1

[Event "*** Titled Tuesday Blitz"]
[Site "Chess.com"]
[Date "2021.03.30"]
[Round "6"]
[White "Trankuilizer"]
[Black "Cambek64"]
[Result "0-1"]
[WhiteElo "2581"]
[BlackElo "2469"]
[TimeControl "180+1"]
[EndTime "11:07:53 PDT"]
[Termination "Cambek64 won by checkmate"]

1. e4 {[%clk 0:03:00.9]} 1... e6 {[%clk 0:02:55.9]} 2. d4 {[%clk 0:03:00.6]}
2... d5 {[%clk 0:02:46.3]} 3. Nd2 {[%clk 0:03:00.9]} 3... Nc6 {[%clk 0:02:45.8]}
4. Ngf3 {[%clk 0:03:00.2]} 4... Nf6 {[%clk 0:02:46.2]} 5. e5 {[%clk 0:02:59.5]}
5... Nd7 {[%clk 0:02:46.6]} 6. Bb5 {[%clk 0:03:00.1]} 6... a6 {[%clk 0:02:45.2]}
7. Bxc6 {[%clk 0:02:59]} 7... bxc6 {[%clk 0:02:45.7]} 8. O-O {[%clk 0:02:59.9]}
8... c5 {[%clk 0:02:43.3]} 9. c3 {[%clk 0:02:44.5]} 9... cxd4 {[%clk 0:02:42.1]}
10. cxd4 {[%clk 0:02:44.5]} 10... c5 {[%clk 0:02:42.3]} 11. Nb3 {[%clk 0:02:45]}
11... a5 {[%clk 0:02:26.7]} 12. Be3 {[%clk 0:02:39.1]} 12... a4 {[%clk
0:02:26.8]} 13. Nxc5 {[%clk 0:02:38.5]} 13... Nxc5 {[%clk 0:02:24.9]} 14. dxc5
{[%clk 0:02:39.4]} 14... Qa5 {[%clk 0:02:17.1]} 15. Rc1 {[%clk 0:02:35.6]} 15...
Ba6 {[%clk 0:02:14.8]} 16. Re1 {[%clk 0:02:34.9]} 16... Be7 {[%clk 0:02:12.9]}
17. Nd4 {[%clk 0:02:34.6]} 17... O-O {[%clk 0:02:13.1]} 18. Qg4 {[%clk
0:02:26.7]} 18... Rfc8 {[%clk 0:02:10.3]} 19. c6 {[%clk 0:01:43.8]} 19... Bf8
{[%clk 0:02:03.7]} 20. h4 {[%clk 0:01:41.7]} 20... Rab8 {[%clk 0:01:52]} 21. b3
{[%clk 0:01:41.1]} 21... Bd3 {[%clk 0:01:46.2]} 22. h5 {[%clk 0:01:33.4]} 22...
axb3 {[%clk 0:01:35.4]} 23. axb3 {[%clk 0:01:33]} 23... Kh8 {[%clk 0:01:12.8]}
24. Qf3 {[%clk 0:01:12]} 24... Kg8 {[%clk 0:01:06.2]} 25. Ra1 {[%clk 0:01:11.6]}
25... Qc7 {[%clk 0:01:00.3]} 26. Qg3 {[%clk 0:01:09.1]} 26... Be4 {[%clk
0:00:54.1]} 27. f3 {[%clk 0:00:48.4]} 27... Bd3 {[%clk 0:00:53.2]} 28. Red1
{[%clk 0:00:48.2]} 28... Bb5 {[%clk 0:00:46.1]} 29. Rdc1 {[%clk 0:00:44.8]}
29... Bd3 {[%clk 0:00:29.5]} 30. Qf4 {[%clk 0:00:36.8]} 30... h6 {[%clk
0:00:28.6]} 31. Rc3 {[%clk 0:00:36.3]} 31... Bh7 {[%clk 0:00:28.5]} 32. Bf2
{[%clk 0:00:24]} 32... Be7 {[%clk 0:00:26.2]} 33. Qe3 {[%clk 0:00:23.2]} 33...
Bg5 {[%clk 0:00:25.5]} 34. Qe2 {[%clk 0:00:23.5]} 34... Ra8 {[%clk 0:00:24.4]}
35. Ra6 {[%clk 0:00:21.9]} 35... Rxa6 {[%clk 0:00:22.9]} 36. Qxa6 {[%clk
0:00:22.8]} 36... Rb8 {[%clk 0:00:18.7]} 37. Bg3 {[%clk 0:00:17.6]} 37... Bd2
{[%clk 0:00:15.6]} 38. Rd3 {[%clk 0:00:14.6]} 38... Bxd3 {[%clk 0:00:12.7]} 39.
Qxd3 {[%clk 0:00:15.5]} 39... Bb4 {[%clk 0:00:12.5]} 40. Kh2 {[%clk 0:00:14.1]}
40... Bc5 {[%clk 0:00:13]} 41. Ne2 {[%clk 0:00:05.9]} 41... Qxc6 {[%clk
0:00:12.4]} 42. Nf4 {[%clk 0:00:05.7]} 42... Qb5 {[%clk 0:00:12.9]} 43. Qc2
{[%clk 0:00:05.2]} 43... Bf8 {[%clk 0:00:12.1]} 44. Qc7 {[%clk 0:00:04.5]} 44...
Qxb3 {[%clk 0:00:12]} 45. Ne2 {[%clk 0:00:02.8]} 45... Qb7 {[%clk 0:00:12.5]}
46. Qc2 {[%clk 0:00:02.4]} 46... Rc8 {[%clk 0:00:13.1]} 47. Qd3 {[%clk
0:00:02.7]} 47... Rc4 {[%clk 0:00:13.5]} 48. Nd4 {[%clk 0:00:02.6]} 48... Qb4
{[%clk 0:00:13.7]} 49. Bf2 {[%clk 0:00:02.4]} 49... Qa4 {[%clk 0:00:12.1]} 50.
Ne2 {[%clk 0:00:01.9]} 50... Qc2 {[%clk 0:00:09.8]} 51. Qe3 {[%clk 0:00:02.3]}
51... Bc5 {[%clk 0:00:08.9]} 52. Qf4 {[%clk 0:00:02.1]} 52... Qxe2 {[%clk
0:00:07.1]} 53. Bh4 {[%clk 0:00:02]} 53... Rc2 {[%clk 0:00:05.3]} 54. Qg4 {[%clk
0:00:02.4]} 54... Qxe5+ {[%clk 0:00:05]} 55. Bg3 {[%clk 0:00:02.2]} 55... Qe2
{[%clk 0:00:05]} 56. Bf4 {[%clk 0:00:03.1]} 56... Be3 {[%clk 0:00:04.2]} 57. Be5
{[%clk 0:00:02.2]} 57... Bg5 {[%clk 0:00:04]} 58. Bd6 {[%clk 0:00:01.5]} 58...
Qf2 {[%clk 0:00:03.1]} 59. Bb8 {[%clk 0:00:01.3]} 59... Qh4+ {[%clk 0:00:03.4]}
60. Qxh4 {[%clk 0:00:01.7]} 60... Bxh4 {[%clk 0:00:03.9]} 61. Kh3 {[%clk
0:00:02.6]} 61... Bf6 {[%clk 0:00:04.6]} 62. Bf4 {[%clk 0:00:03.5]} 62... d4
{[%clk 0:00:05.2]} 63. Bxh6 {[%clk 0:00:04.4]} 63... d3 {[%clk 0:00:05.6]} 64.
Bf4 {[%clk 0:00:05.3]} 64... d2 {[%clk 0:00:06.2]} 65. Bxd2 {[%clk 0:00:06.1]}
65... Rxd2 {[%clk 0:00:06.5]} 66. Kg3 {[%clk 0:00:07]} 66... Rd5 {[%clk
0:00:07]} 67. f4 {[%clk 0:00:07.9]} 67... Rxh5 {[%clk 0:00:07.4]} 68. Kf3 {[%clk
0:00:08.8]} 68... Rf5 {[%clk 0:00:08]} 69. g4 {[%clk 0:00:09.7]} 69... Rd5
{[%clk 0:00:08.3]} 70. g5 {[%clk 0:00:10.6]} 70... e5 {[%clk 0:00:08.9]} 71.
gxf6 {[%clk 0:00:11]} 71... gxf6 {[%clk 0:00:08.3]} 72. Ke4 {[%clk 0:00:11.9]}
72... Rd4+ {[%clk 0:00:08.7]} 73. Kf5 {[%clk 0:00:11.8]} 73... Rxf4# {[%clk
0:00:09.6]} 0-1